[Event "Early-Titled-Tuesday-Blitz-September-12-2023"]
[Site "Chess.com"]
[Date "2023.09.12"]
[Round "6"]
[White "KChor05TTV"]
[Black "parintele_chess"]
[Result "1-0"]
[WhiteElo "2595"]
[BlackElo "2266"]
[TimeControl "180+1"]
[EndTime "9:05:48 PDT"]
[Termination "KChor05TTV won by resignation"]

1. e4 {[%clk 0:03:00.9]} 1... e5 {[%clk 0:02:54.9]} 2. Nf3 {[%clk 0:03:00.5]}
2... Nc6 {[%clk 0:02:55.4]} 3. d4 {[%clk 0:03:00.4]} 3... exd4 {[%clk
0:02:55.4]} 4. Bc4 {[%clk 0:02:59.5]} 4... Nf6 {[%clk 0:02:55.7]} 5. e5 {[%clk
0:02:48.2]} 5... Ne4 {[%clk 0:02:54.7]} 6. c3 {[%clk 0:02:29.9]} 6... d5 {[%clk
0:02:37.2]} 7. Bb5 {[%clk 0:02:27.7]} 7... Bd7 {[%clk 0:02:23.9]} 8. O-O {[%clk
0:02:20.9]} 8... Be7 {[%clk 0:02:17.5]} 9. cxd4 {[%clk 0:02:17.4]} 9... O-O
{[%clk 0:02:15.6]} 10. Nc3 {[%clk 0:02:17.1]} 10... Bg4 {[%clk 0:02:03.8]} 11.
Be2 {[%clk 0:02:08.8]} 11... f6 {[%clk 0:01:51.9]} 12. Qb3 {[%clk 0:01:51.5]}
12... Nxc3 {[%clk 0:01:48.8]} 13. bxc3 {[%clk 0:01:51.3]} 13... fxe5 {[%clk
0:01:41.5]} 14. Qxb7 {[%clk 0:01:50.4]} 14... Na5 {[%clk 0:01:09.2]} 15. Qa6
{[%clk 0:01:13.8]} 15... Bxf3 {[%clk 0:00:42]} 16. Bxf3 {[%clk 0:01:14.7]} 16...
Rxf3 {[%clk 0:00:37.8]} 17. gxf3 {[%clk 0:01:08.5]} 17... Nc4 {[%clk 0:00:35]}
18. Qe6+ {[%clk 0:01:03.1]} 18... Kh8 {[%clk 0:00:32.9]} 19. dxe5 {[%clk
0:00:58.4]} 19... Qf8 {[%clk 0:00:22.6]} 20. Qxd5 {[%clk 0:00:54.3]} 20... Nb6
{[%clk 0:00:14.3]} 21. Qe4 {[%clk 0:00:54.3]} 21... Re8 {[%clk 0:00:11.7]} 22.
Bf4 {[%clk 0:00:54.5]} 22... Bf6 {[%clk 0:00:11.2]} 23. Bg3 {[%clk 0:00:52.5]}
23... Qc5 {[%clk 0:00:08.8]} 24. Qd4 {[%clk 0:00:46.5]} 24... Qxd4 {[%clk
0:00:07.6]} 25. cxd4 {[%clk 0:00:47.4]} 25... Be7 {[%clk 0:00:07.5]} 26. Rac1
{[%clk 0:00:45.6]} 26... Nd5 {[%clk 0:00:07.6]} 27. Rc6 {[%clk 0:00:38.1]} 27...
Rb8 {[%clk 0:00:06.4]} 28. Rfc1 {[%clk 0:00:32.8]} 28... Kg8 {[%clk 0:00:06.4]}
29. Rxc7 {[%clk 0:00:31]} 29... Nxc7 {[%clk 0:00:07.3]} 30. Rxc7 {[%clk
0:00:31.2]} 30... Ba3 {[%clk 0:00:06.8]} 31. Rxa7 {[%clk 0:00:30.9]} 31... Bb2
{[%clk 0:00:06.3]} 32. d5 {[%clk 0:00:29.2]} 32... Rd8 {[%clk 0:00:04.5]} 33. e6
{[%clk 0:00:29.3]} 33... Rd6 {[%clk 0:00:04]} 34. Ra8+ {[%clk 0:00:28.1]} 1-0

[Event "Early-Titled-Tuesday-Blitz-September-12-2023"]
[Site "Chess.com"]
[Date "2023.09.12"]
[Round "6"]
[White "DarZay"]
[Black "bennyficial"]
[Result "1-0"]
[WhiteElo "2263"]
[BlackElo "2136"]
[TimeControl "180+1"]
[EndTime "9:05:48 PDT"]
[Termination "DarZay won on time"]

1. e4 {[%clk 0:02:58.5]} 1... c5 {[%clk 0:03:00.1]} 2. Nf3 {[%clk 0:02:58]} 2...
g6 {[%clk 0:03:00.4]} 3. d4 {[%clk 0:02:58]} 3... cxd4 {[%clk 0:03:01.3]} 4.
Nxd4 {[%clk 0:02:58.3]} 4... Nf6 {[%clk 0:03:01.6]} 5. Nc3 {[%clk 0:02:58.2]}
5... d6 {[%clk 0:03:02.2]} 6. Bc4 {[%clk 0:02:54.9]} 6... Bg7 {[%clk 0:02:59.5]}
7. O-O {[%clk 0:02:52.9]} 7... O-O {[%clk 0:02:54.8]} 8. h3 {[%clk 0:02:49.1]}
8... Nxe4 {[%clk 0:02:41]} 9. Nxe4 {[%clk 0:02:42.2]} 9... d5 {[%clk 0:02:41.1]}
10. Nf3 {[%clk 0:02:12]} 10... dxc4 {[%clk 0:02:31.4]} 11. Qe2 {[%clk
0:02:10.3]} 11... b5 {[%clk 0:02:24]} 12. Bf4 {[%clk 0:02:06.5]} 12... a6 {[%clk
0:01:55.6]} 13. Rad1 {[%clk 0:02:04.6]} 13... Qa5 {[%clk 0:01:51.4]} 14. Nc5
{[%clk 0:02:03.9]} 14... Qxa2 {[%clk 0:01:33.2]} 15. Qe4 {[%clk 0:01:56.2]}
15... e5 {[%clk 0:00:45]} 16. Qxa8 {[%clk 0:01:27.3]} 16... exf4 {[%clk
0:00:45.2]} 17. Qxb8 {[%clk 0:01:26.3]} 17... Bxh3 {[%clk 0:00:40.5]} 18. Qxf4
{[%clk 0:01:20.3]} 18... Bf5 {[%clk 0:00:30.3]} 19. Nd7 {[%clk 0:01:15.4]} 19...
Re8 {[%clk 0:00:17.4]} 20. Rfe1 {[%clk 0:00:59.6]} 20... Rd8 {[%clk 0:00:12.6]}
21. Qc7 {[%clk 0:00:44.7]} 21... Ra8 {[%clk 0:00:08.3]} 22. Nb6 {[%clk
0:00:36.3]} 22... Rf8 {[%clk 0:00:07.7]} 23. Rd8 {[%clk 0:00:31.6]} 23... Qxb2
{[%clk 0:00:06.8]} 24. Ng5 {[%clk 0:00:27.1]} 24... Qf6 {[%clk 0:00:03.7]} 25.
Rxf8+ {[%clk 0:00:26.7]} 25... Bxf8 {[%clk 0:00:04]} 26. Nf3 {[%clk 0:00:13.5]}
26... Kg7 {[%clk 0:00:03.1]} 27. Nd5 {[%clk 0:00:11.9]} 1-0

[Event "Early-Titled-Tuesday-Blitz-September-12-2023"]
[Site "Chess.com"]
[Date "2023.09.12"]
[Round "6"]
[White "Cayse"]
[Black "Amirreza_p"]
[Result "1-0"]
[WhiteElo "2852"]
[BlackElo "2568"]
[TimeControl "180+1"]
[EndTime "9:05:49 PDT"]
[Termination "Cayse won by resignation"]

1. e4 {[%clk 0:03:00.9]} 1... c6 {[%clk 0:02:59.6]} 2. Nf3 {[%clk 0:03:00.6]}
2... d5 {[%clk 0:03:00.2]} 3. d3 {[%clk 0:03:01.3]} 3... dxe4 {[%clk 0:03:00]}
4. dxe4 {[%clk 0:03:02.2]} 4... Qxd1+ {[%clk 0:03:00.5]} 5. Kxd1 {[%clk
0:03:03.1]} 5... Nf6 {[%clk 0:03:00.8]} 6. Nbd2 {[%clk 0:03:02.6]} 6... g6
{[%clk 0:03:01.1]} 7. Ne5 {[%clk 0:03:02.4]} 7... Bg7 {[%clk 0:02:59.2]} 8. Nd3
{[%clk 0:02:40]} 8... O-O {[%clk 0:02:54.7]} 9. f3 {[%clk 0:02:40.2]} 9... b6
{[%clk 0:02:52.6]} 10. a4 {[%clk 0:02:39.4]} 10... Nbd7 {[%clk 0:02:48.4]} 11.
Nb3 {[%clk 0:02:31.7]} 11... Ba6 {[%clk 0:02:44.9]} 12. Bd2 {[%clk 0:02:27.8]}
12... Bxd3 {[%clk 0:02:41.5]} 13. Bxd3 {[%clk 0:02:27.2]} 13... Ne5 {[%clk
0:02:32.9]} 14. Bc3 {[%clk 0:02:21.8]} 14... Nfd7 {[%clk 0:02:18.6]} 15. Ke2
{[%clk 0:02:20.6]} 15... Rfd8 {[%clk 0:02:13.4]} 16. Rhd1 {[%clk 0:02:19.5]}
16... Nxd3 {[%clk 0:02:00.1]} 17. cxd3 {[%clk 0:02:19]} 17... c5 {[%clk
0:01:58.2]} 18. Rac1 {[%clk 0:02:09.6]} 18... e5 {[%clk 0:01:54]} 19. Nd2 {[%clk
0:02:08.4]} 19... Nb8 {[%clk 0:01:51.4]} 20. b4 {[%clk 0:02:06.2]} 20... cxb4
{[%clk 0:01:18]} 21. Bxb4 {[%clk 0:02:06.7]} 21... Na6 {[%clk 0:01:18.7]} 22.
Ba3 {[%clk 0:02:06.6]} 22... Bf8 {[%clk 0:01:15.5]} 23. Bxf8 {[%clk 0:02:06]}
23... Kxf8 {[%clk 0:01:16.4]} 24. Nb3 {[%clk 0:02:04.1]} 24... Rac8 {[%clk
0:01:14.1]} 25. Ke3 {[%clk 0:01:45.1]} 25... Ke7 {[%clk 0:00:58.8]} 26. d4
{[%clk 0:01:43.9]} 26... exd4+ {[%clk 0:00:52.2]} 27. Nxd4 {[%clk 0:01:43.6]}
27... Nc5 {[%clk 0:00:52.9]} 28. Rc4 {[%clk 0:01:39.2]} 28... Rd6 {[%clk
0:00:48]} 29. a5 {[%clk 0:01:29.2]} 29... Rcd8 {[%clk 0:00:42.9]} 30. Rb1 {[%clk
0:01:23.7]} 30... f6 {[%clk 0:00:40.5]} 31. g4 {[%clk 0:01:19.4]} 31... g5
{[%clk 0:00:39.4]} 32. Nf5+ {[%clk 0:01:18.5]} 32... Ke6 {[%clk 0:00:38.2]} 33.
Nxd6 {[%clk 0:01:18.1]} 33... Rxd6 {[%clk 0:00:39.1]} 34. Rd4 {[%clk 0:01:18.5]}
34... Rc6 {[%clk 0:00:37]} 35. Rc1 {[%clk 0:01:17.8]} 35... bxa5 {[%clk
0:00:28.3]} 36. Rd5 {[%clk 0:01:17.1]} 36... Nxe4 {[%clk 0:00:28.7]} 37. Rxc6+
{[%clk 0:01:09.6]} 37... Kxd5 {[%clk 0:00:28.4]} 38. Ra6 {[%clk 0:01:09.9]}
38... Nd6 {[%clk 0:00:27.6]} 39. Rxa5+ {[%clk 0:01:09.1]} 39... Ke6 {[%clk
0:00:27.5]} 40. Rxa7 {[%clk 0:01:09.7]} 40... h6 {[%clk 0:00:27.4]} 41. Rh7
{[%clk 0:01:05.7]} 41... Nf7 {[%clk 0:00:26.8]} 42. Ke4 {[%clk 0:01:03.8]} 42...
f5+ {[%clk 0:00:24.3]} 43. gxf5+ {[%clk 0:01:03.3]} 43... Kf6 {[%clk 0:00:25.2]}
44. Rxf7+ {[%clk 0:01:02.3]} 44... Kxf7 {[%clk 0:00:24.9]} 45. Ke5 {[%clk
0:01:03]} 45... h5 {[%clk 0:00:22.3]} 46. h3 {[%clk 0:01:03.1]} 46... Kg8 {[%clk
0:00:14.8]} 47. Kf6 {[%clk 0:01:02.6]} 47... g4 {[%clk 0:00:13.5]} 48. fxg4
{[%clk 0:01:02.1]} 1-0

[Event "Early-Titled-Tuesday-Blitz-September-12-2023"]
[Site "Chess.com"]
[Date "2023.09.12"]
[Round "6"]
[White "Rutricks"]
[Black "TERMINATOR_PC"]
[Result "1-0"]
[WhiteElo "2679"]
[BlackElo "2526"]
[TimeControl "180+1"]
[EndTime "9:05:49 PDT"]
[Termination "Rutricks won by resignation"]

1. e4 {[%clk 0:03:00.9]} 1... e5 {[%clk 0:02:59.5]} 2. Nf3 {[%clk 0:03:00.6]}
2... Nc6 {[%clk 0:02:59.8]} 3. Bc4 {[%clk 0:03:01]} 3... Nf6 {[%clk 0:02:58.8]}
4. d3 {[%clk 0:03:01]} 4... Bc5 {[%clk 0:02:59]} 5. O-O {[%clk 0:03:01.1]} 5...
a6 {[%clk 0:02:57.7]} 6. c3 {[%clk 0:03:01.4]} 6... Ba7 {[%clk 0:02:57.2]} 7.
Nbd2 {[%clk 0:03:00.5]} 7... d6 {[%clk 0:02:57.1]} 8. Bb3 {[%clk 0:02:59.4]}
8... O-O {[%clk 0:02:57.2]} 9. h3 {[%clk 0:02:58.1]} 9... Re8 {[%clk 0:02:57.4]}
10. Re1 {[%clk 0:02:58.5]} 10... h6 {[%clk 0:02:57.5]} 11. Nf1 {[%clk
0:02:58.3]} 11... Be6 {[%clk 0:02:58]} 12. Bc2 {[%clk 0:02:58.1]} 12... d5
{[%clk 0:02:54.9]} 13. Qe2 {[%clk 0:02:57.6]} 13... Qd7 {[%clk 0:02:53.8]} 14.
Ng3 {[%clk 0:02:54.7]} 14... Rad8 {[%clk 0:02:51.4]} 15. Nh4 {[%clk 0:02:49.9]}
15... Nh7 {[%clk 0:02:41.8]} 16. Nhf5 {[%clk 0:02:48]} 16... Ne7 {[%clk
0:02:40.3]} 17. Nxg7 {[%clk 0:01:50.7]} 17... Kxg7 {[%clk 0:02:37.9]} 18. exd5
{[%clk 0:01:48.7]} 18... Nxd5 {[%clk 0:02:31.3]} 19. Qxe5+ {[%clk 0:01:44.1]}
19... f6 {[%clk 0:02:31.2]} 20. Qh5 {[%clk 0:01:43.1]} 20... Ng5 {[%clk
0:02:24.8]} 21. d4 {[%clk 0:01:39.3]} 21... Bf7 {[%clk 0:02:23.4]} 22. Qd1
{[%clk 0:01:36.8]} 22... Rxe1+ {[%clk 0:02:19.8]} 23. Qxe1 {[%clk 0:01:37.7]}
23... Re8 {[%clk 0:02:19.8]} 24. Qd1 {[%clk 0:01:36.4]} 24... c5 {[%clk
0:01:37]} 25. h4 {[%clk 0:01:31.5]} 25... cxd4 {[%clk 0:01:37.1]} 26. hxg5
{[%clk 0:01:26.9]} 26... hxg5 {[%clk 0:01:37.5]} 27. cxd4 {[%clk 0:01:24.5]}
27... Nb4 {[%clk 0:01:32.4]} 28. Be4 {[%clk 0:01:21.4]} 28... Be6 {[%clk
0:01:29.9]} 29. Qh5 {[%clk 0:01:11.3]} 29... Qf7 {[%clk 0:01:30.1]} 30. Qf3
{[%clk 0:01:03.6]} 30... Nc6 {[%clk 0:01:27.5]} 31. Nh5+ {[%clk 0:01:01.9]}
31... Kf8 {[%clk 0:01:25.5]} 32. Nxf6 {[%clk 0:00:57.4]} 32... Nxd4 {[%clk
0:01:25.5]} 33. Qa3+ {[%clk 0:00:55]} 33... Re7 {[%clk 0:01:20.5]} 34. Bxg5
{[%clk 0:00:52.1]} 34... Ne2+ {[%clk 0:01:15.7]} 35. Kh1 {[%clk 0:00:49.1]}
35... Kg7 {[%clk 0:00:43.3]} 36. Qd3 {[%clk 0:00:35.3]} 36... Bc4 {[%clk
0:00:21.5]} 37. Qh3 {[%clk 0:00:31.5]} 1-0

[Event "Early-Titled-Tuesday-Blitz-September-12-2023"]
[Site "Chess.com"]
[Date "2023.09.12"]
[Round "6"]
[White "Firouzja2003"]
[Black "seopie"]
[Result "1-0"]
[WhiteElo "3062"]
[BlackElo "2833"]
[TimeControl "180+1"]
[EndTime "9:05:50 PDT"]
[Termination "Firouzja2003 won by resignation"]

1. e4 {[%clk 0:03:00.9]} 1... c5 {[%clk 0:03:00.5]} 2. Nf3 {[%clk 0:03:00.6]}
2... d6 {[%clk 0:03:01.2]} 3. d4 {[%clk 0:03:00]} 3... cxd4 {[%clk 0:03:02.1]}
4. Nxd4 {[%clk 0:03:00.3]} 4... Nf6 {[%clk 0:03:02.8]} 5. Nc3 {[%clk 0:02:53.2]}
5... a6 {[%clk 0:03:03.1]} 6. Bg5 {[%clk 0:02:52.3]} 6... Nbd7 {[%clk
0:03:01.7]} 7. Bc4 {[%clk 0:02:51.1]} 7... Qb6 {[%clk 0:03:01.2]} 8. Bb3 {[%clk
0:02:50.2]} 8... e6 {[%clk 0:03:01.1]} 9. f3 {[%clk 0:02:50.4]} 9... Be7 {[%clk
0:02:59.3]} 10. Qd2 {[%clk 0:02:50.7]} 10... Nc5 {[%clk 0:02:59.4]} 11. O-O-O
{[%clk 0:02:50.8]} 11... Bd7 {[%clk 0:02:59.1]} 12. Kb1 {[%clk 0:02:50]} 12...
Qc7 {[%clk 0:02:57.7]} 13. a3 {[%clk 0:02:50.3]} 13... Nxb3 {[%clk 0:02:37.4]}
14. cxb3 {[%clk 0:02:50.5]} 14... b5 {[%clk 0:02:29.8]} 15. Rc1 {[%clk
0:02:41.9]} 15... Qb7 {[%clk 0:02:28.4]} 16. Nce2 {[%clk 0:02:41.3]} 16... e5
{[%clk 0:02:16.7]} 17. Nf5 {[%clk 0:02:25]} 17... Bxf5 {[%clk 0:02:16.3]} 18.
exf5 {[%clk 0:02:25.9]} 18... d5 {[%clk 0:02:13.7]} 19. Qe3 {[%clk 0:01:58.6]}
19... e4 {[%clk 0:01:57.5]} 20. Qf4 {[%clk 0:01:43]} 20... Qb6 {[%clk
0:01:39.9]} 21. fxe4 {[%clk 0:01:38.6]} 21... dxe4 {[%clk 0:01:38.2]} 22. Bxf6
{[%clk 0:01:16.1]} 22... Qxf6 {[%clk 0:01:38]} 23. Qxe4 {[%clk 0:01:14]} 23...
O-O {[%clk 0:01:38.2]} 24. Rc6 {[%clk 0:01:13.2]} 24... Qg5 {[%clk 0:01:30.8]}
25. h4 {[%clk 0:01:10.3]} 25... Qd2 {[%clk 0:01:30.6]} 26. Qxe7 {[%clk
0:00:47.9]} 26... Rfe8 {[%clk 0:00:57.1]} 27. Rxa6 {[%clk 0:00:47.9]} 27... Rac8
{[%clk 0:00:46.1]} 28. Rc6 {[%clk 0:00:47.6]} 28... Ra8 {[%clk 0:00:42.6]} 29.
Qg5 {[%clk 0:00:41.6]} 29... Rxe2 {[%clk 0:00:39.2]} 30. Qxd2 {[%clk 0:00:39.7]}
30... Rxd2 {[%clk 0:00:39.4]} 31. Rhc1 {[%clk 0:00:40.4]} 31... h5 {[%clk
0:00:37.6]} 32. R1c2 {[%clk 0:00:35.7]} 32... Rd4 {[%clk 0:00:32.9]} 33. R6c5
{[%clk 0:00:35.9]} 33... b4 {[%clk 0:00:29.3]} 34. R5c4 {[%clk 0:00:27.9]} 34...
Rxc4 {[%clk 0:00:25.1]} 35. bxc4 {[%clk 0:00:27.5]} 35... bxa3 {[%clk
0:00:23.6]} 36. b4 {[%clk 0:00:25.2]} 36... Ra4 {[%clk 0:00:19.3]} 37. b5 {[%clk
0:00:25.6]} 37... Rb4+ {[%clk 0:00:19.4]} 38. Ka2 {[%clk 0:00:25.3]} 1-0

[Event "Early-Titled-Tuesday-Blitz-September-12-2023"]
[Site "Chess.com"]
[Date "2023.09.12"]
[Round "6"]
[White "baki83"]
[Black "Grandmaster1369"]
[Result "1-0"]
[WhiteElo "2806"]
[BlackElo "2565"]
[TimeControl "180+1"]
[EndTime "9:05:53 PDT"]
[Termination "baki83 won by checkmate"]

1. e4 {[%clk 0:03:00.9]} 1... c5 {[%clk 0:02:55.3]} 2. Nf3 {[%clk 0:03:00.2]}
2... e6 {[%clk 0:02:52.3]} 3. c3 {[%clk 0:02:59.7]} 3... d5 {[%clk 0:02:51.7]}
4. exd5 {[%clk 0:02:58.7]} 4... Qxd5 {[%clk 0:02:52.6]} 5. d4 {[%clk 0:02:58]}
5... Nf6 {[%clk 0:02:52.2]} 6. Na3 {[%clk 0:02:57.9]} 6... Nc6 {[%clk
0:02:50.9]} 7. Nb5 {[%clk 0:02:56.6]} 7... Qd7 {[%clk 0:02:47.1]} 8. dxc5 {[%clk
0:02:48]} 8... Bxc5 {[%clk 0:02:43.3]} 9. Qxd7+ {[%clk 0:02:46.7]} 9... Kxd7
{[%clk 0:02:43.7]} 10. Bf4 {[%clk 0:02:44.4]} 10... Ne4 {[%clk 0:02:40.3]} 11.
Rd1+ {[%clk 0:02:40.5]} 11... Ke7 {[%clk 0:02:40.1]} 12. Nbd4 {[%clk 0:02:26.8]}
12... Nxd4 {[%clk 0:02:24]} 13. Nxd4 {[%clk 0:02:25.3]} 13... Bd7 {[%clk
0:02:24.3]} 14. Bd3 {[%clk 0:02:22.1]} 14... Nf6 {[%clk 0:02:23.4]} 15. Be5
{[%clk 0:01:51.5]} 15... Ng4 {[%clk 0:02:05.4]} 16. Bg3 {[%clk 0:01:50.2]} 16...
h5 {[%clk 0:01:52.2]} 17. h3 {[%clk 0:01:07.5]} 17... h4 {[%clk 0:01:51.6]} 18.
Bf4 {[%clk 0:01:07.7]} 18... e5 {[%clk 0:01:43.9]} 19. hxg4 {[%clk 0:00:21.4]}
19... exf4 {[%clk 0:01:42.7]} 20. Bf5 {[%clk 0:00:14.3]} 20... Be8 {[%clk
0:01:32.4]} 21. Ke2 {[%clk 0:00:14.1]} 21... Kf6 {[%clk 0:01:31.4]} 22. Be4
{[%clk 0:00:14.3]} 22... Rb8 {[%clk 0:01:24]} 23. Kf3 {[%clk 0:00:14.7]} 23...
Kg5 {[%clk 0:01:18]} 24. Ne2 {[%clk 0:00:14.2]} 24... b6 {[%clk 0:01:04.3]} 25.
Nxf4 {[%clk 0:00:13.3]} 25... g6 {[%clk 0:01:01.5]} 26. b4 {[%clk 0:00:07.2]}
26... Be7 {[%clk 0:01:00.9]} 27. Rhe1 {[%clk 0:00:05.8]} 27... Ba4 {[%clk
0:00:55.3]} 28. Rd5+ {[%clk 0:00:05.3]} 28... Kf6 {[%clk 0:00:55.2]} 29. c4
{[%clk 0:00:04.3]} 29... Bxb4 {[%clk 0:00:54.7]} 30. Rb1 {[%clk 0:00:04]} 30...
Bf8 {[%clk 0:00:51.9]} 31. g5+ {[%clk 0:00:04.1]} 31... Kg7 {[%clk 0:00:52.2]}
32. Rd3 {[%clk 0:00:04.4]} 32... Bc2 {[%clk 0:00:52]} 33. Rd7 {[%clk 0:00:03.4]}
33... Bxb1 {[%clk 0:00:52]} 34. Bd5 {[%clk 0:00:03.9]} 34... Kh7 {[%clk
0:00:37.6]} 35. Bxf7 {[%clk 0:00:01.9]} 35... Bg7 {[%clk 0:00:38.1]} 36. Ne6
{[%clk 0:00:01.9]} 36... Bf5 {[%clk 0:00:35.3]} 37. Bxg6+ {[%clk 0:00:02.3]}
37... Kxg6 {[%clk 0:00:33.4]} 38. Rxg7+ {[%clk 0:00:02.4]} 38... Kh5 {[%clk
0:00:33.1]} 39. Nf4# {[%clk 0:00:03.1]} 1-0

[Event "Early-Titled-Tuesday-Blitz-September-12-2023"]
[Site "Chess.com"]
[Date "2023.09.12"]
[Round "6"]
[White "yuki_chess123"]
[Black "Rakitic2010"]
[Result "0-1"]
[WhiteElo "2179"]
[BlackElo "2408"]
[TimeControl "180+1"]
[EndTime "9:05:55 PDT"]
[Termination "Rakitic2010 won on time"]

1. e4 {[%clk 0:03:00]} 1... Nf6 {[%clk 0:02:54.7]} 2. d4 {[%clk 0:02:54.9]} 2...
Nxe4 {[%clk 0:02:53.5]} 3. Nf3 {[%clk 0:02:53.5]} 3... d5 {[%clk 0:02:50.4]} 4.
Bd3 {[%clk 0:02:50.8]} 4... Bf5 {[%clk 0:02:46.5]} 5. O-O {[%clk 0:02:48.8]}
5... e6 {[%clk 0:02:45.3]} 6. Re1 {[%clk 0:02:48.6]} 6... Be7 {[%clk 0:02:44.8]}
7. c4 {[%clk 0:02:47.7]} 7... c6 {[%clk 0:02:44.6]} 8. Nc3 {[%clk 0:02:30.8]}
8... Nxc3 {[%clk 0:02:42.3]} 9. bxc3 {[%clk 0:02:31.7]} 9... Bxd3 {[%clk
0:02:42.5]} 10. Qxd3 {[%clk 0:02:32.2]} 10... O-O {[%clk 0:02:42.4]} 11. Rb1
{[%clk 0:02:27.9]} 11... b6 {[%clk 0:02:34.3]} 12. Ne5 {[%clk 0:02:13.9]} 12...
Bf6 {[%clk 0:02:29.7]} 13. Ng4 {[%clk 0:02:01.8]} 13... Nd7 {[%clk 0:02:25.5]}
14. Re3 {[%clk 0:01:48.2]} 14... Bg5 {[%clk 0:01:59.7]} 15. Rh3 {[%clk
0:01:40.5]} 15... f5 {[%clk 0:01:59.2]} 16. f4 {[%clk 0:01:09.5]} 16... fxg4
{[%clk 0:01:43.6]} 17. Qxh7+ {[%clk 0:01:05.7]} 17... Kf7 {[%clk 0:01:44.1]} 18.
Qh5+ {[%clk 0:00:40.6]} 18... Ke7 {[%clk 0:01:40]} 19. Qxg4 {[%clk 0:00:40.6]}
19... Bf6 {[%clk 0:01:36.3]} 20. cxd5 {[%clk 0:00:36.8]} 20... cxd5 {[%clk
0:01:31.9]} 21. Ba3+ {[%clk 0:00:36.3]} 21... Kf7 {[%clk 0:01:23.8]} 22. Bxf8
{[%clk 0:00:19.4]} 22... Nxf8 {[%clk 0:01:17]} 23. f5 {[%clk 0:00:20.3]} 23...
Qd7 {[%clk 0:01:13.2]} 24. Qh5+ {[%clk 0:00:19.6]} 24... Kg8 {[%clk 0:01:10.7]}
25. Qh8+ {[%clk 0:00:18.7]} 25... Kf7 {[%clk 0:01:11.2]} 26. Qh5+ {[%clk
0:00:19.1]} 26... Ke7 {[%clk 0:01:11.8]} 27. Re1 {[%clk 0:00:18.6]} 27... Kd6
{[%clk 0:01:09]} 28. fxe6 {[%clk 0:00:16]} 28... Nxe6 {[%clk 0:01:09.2]} 29. Qf5
{[%clk 0:00:15.7]} 29... Rf8 {[%clk 0:00:53.5]} 30. Qd3 {[%clk 0:00:14.4]} 30...
Nf4 {[%clk 0:00:51.8]} 31. Qg3 {[%clk 0:00:12.7]} 31... Qf5 {[%clk 0:00:39.5]}
32. Rf1 {[%clk 0:00:03.5]} 32... Bg5 {[%clk 0:00:36.8]} 33. Rh5 {[%clk
0:00:02.8]} 33... Kc6 {[%clk 0:00:35.3]} 34. Rxf4 {[%clk 0:00:01.6]} 34... Qb1+
{[%clk 0:00:28.4]} 0-1

[Event "Early-Titled-Tuesday-Blitz-September-12-2023"]
[Site "Chess.com"]
[Date "2023.09.12"]
[Round "6"]
[White "Happy1712Drummer"]
[Black "Ariadna_Atreides"]
[Result "1-0"]
[WhiteElo "2358"]
[BlackElo "2216"]
[TimeControl "180+1"]
[EndTime "9:05:55 PDT"]
[Termination "Happy1712Drummer won on time"]

1. e4 {[%clk 0:03:00.9]} 1... c6 {[%clk 0:02:59.5]} 2. d4 {[%clk 0:02:57.4]}
2... d5 {[%clk 0:02:59.9]} 3. Nc3 {[%clk 0:02:56.1]} 3... dxe4 {[%clk
0:02:59.6]} 4. Nxe4 {[%clk 0:02:57]} 4... Nf6 {[%clk 0:02:59.8]} 5. Nxf6+ {[%clk
0:02:55.4]} 5... exf6 {[%clk 0:03:00.7]} 6. Be2 {[%clk 0:02:53.7]} 6... Bd6
{[%clk 0:02:56.9]} 7. Bf3 {[%clk 0:02:50.5]} 7... O-O {[%clk 0:02:46.8]} 8. Ne2
{[%clk 0:02:49.4]} 8... Qc7 {[%clk 0:02:46.3]} 9. Ng3 {[%clk 0:02:43.6]} 9...
Re8+ {[%clk 0:02:40.6]} 10. Be3 {[%clk 0:02:40.6]} 10... Bf4 {[%clk 0:02:34]}
11. Qd2 {[%clk 0:02:28.7]} 11... Qe7 {[%clk 0:01:57.4]} 12. Nf1 {[%clk
0:02:19.5]} 12... Bxe3 {[%clk 0:01:41]} 13. Nxe3 {[%clk 0:02:15.6]} 13... Na6
{[%clk 0:01:33.9]} 14. O-O {[%clk 0:02:13.1]} 14... Nc7 {[%clk 0:01:33.5]} 15.
Rfe1 {[%clk 0:01:59.9]} 15... Be6 {[%clk 0:01:09.5]} 16. c4 {[%clk 0:01:48.7]}
16... Rad8 {[%clk 0:00:56.6]} 17. Rad1 {[%clk 0:01:48.7]} 17... Qd6 {[%clk
0:00:46.9]} 18. g3 {[%clk 0:01:42.6]} 18... f5 {[%clk 0:00:33.3]} 19. b3 {[%clk
0:01:27.4]} 19... f4 {[%clk 0:00:25.2]} 20. Ng2 {[%clk 0:01:24.4]} 20... fxg3
{[%clk 0:00:24.8]} 21. hxg3 {[%clk 0:01:24.4]} 21... h6 {[%clk 0:00:21.4]} 22.
Nf4 {[%clk 0:01:10.4]} 22... Bf5 {[%clk 0:00:20.5]} 23. Rxe8+ {[%clk 0:01:09.9]}
23... Rxe8 {[%clk 0:00:20.4]} 24. Kg2 {[%clk 0:01:06.8]} 24... b5 {[%clk
0:00:16.6]} 25. c5 {[%clk 0:00:41.7]} 25... Qd7 {[%clk 0:00:15.9]} 26. d5 {[%clk
0:00:37.1]} 26... cxd5 {[%clk 0:00:13.7]} 27. Nxd5 {[%clk 0:00:37]} 27... Nxd5
{[%clk 0:00:12.3]} 28. Qxd5 {[%clk 0:00:36.6]} 28... Qxd5 {[%clk 0:00:03]} 29.
Rxd5 {[%clk 0:00:34.6]} 29... Bb1 {[%clk 0:00:02]} 30. Rd2 {[%clk 0:00:25.4]}
30... g5 {[%clk 0:00:01.3]} 31. c6 {[%clk 0:00:23.3]} 31... g4 {[%clk
0:00:01.2]} 32. Bxg4 {[%clk 0:00:20.6]} 1-0

[Event "Early-Titled-Tuesday-Blitz-September-12-2023"]
[Site "Chess.com"]
[Date "2023.09.12"]
[Round "6"]
[White "Gareth-Bale11"]
[Black "aghasiyevkamal"]
[Result "1-0"]
[WhiteElo "2775"]
[BlackElo "2556"]
[TimeControl "180+1"]
[EndTime "9:05:59 PDT"]
[Termination "Gareth-Bale11 won on time"]

1. e4 {[%clk 0:03:00.9]} 1... e5 {[%clk 0:02:58]} 2. Nf3 {[%clk 0:03:01]} 2...
Nc6 {[%clk 0:02:57.5]} 3. Bb5 {[%clk 0:03:00.7]} 3... a6 {[%clk 0:02:57]} 4. Ba4
{[%clk 0:03:00.3]} 4... Nf6 {[%clk 0:02:56.6]} 5. d3 {[%clk 0:02:59.8]} 5... b5
{[%clk 0:02:54.8]} 6. Bb3 {[%clk 0:02:59.6]} 6... Bc5 {[%clk 0:02:55.1]} 7. a4
{[%clk 0:03:00.2]} 7... Rb8 {[%clk 0:02:51.9]} 8. axb5 {[%clk 0:02:53.1]} 8...
axb5 {[%clk 0:02:51.1]} 9. Bg5 {[%clk 0:02:53.5]} 9... d6 {[%clk 0:02:45.8]} 10.
Nbd2 {[%clk 0:02:48.3]} 10... h6 {[%clk 0:02:45.2]} 11. Bh4 {[%clk 0:02:47.7]}
11... g5 {[%clk 0:02:31.8]} 12. Bg3 {[%clk 0:02:47.1]} 12... O-O {[%clk
0:02:19.1]} 13. c3 {[%clk 0:02:45.9]} 13... Bb6 {[%clk 0:02:01]} 14. Nf1 {[%clk
0:02:25.1]} 14... d5 {[%clk 0:01:33.1]} 15. Qe2 {[%clk 0:02:14.8]} 15... Re8
{[%clk 0:01:29.3]} 16. Ne3 {[%clk 0:01:59.7]} 16... dxe4 {[%clk 0:01:25.2]} 17.
dxe4 {[%clk 0:02:00.6]} 17... Nxe4 {[%clk 0:00:57.3]} 18. Bd5 {[%clk 0:01:59.5]}
18... Nxg3 {[%clk 0:00:47.7]} 19. hxg3 {[%clk 0:01:52.6]} 19... Nd4 {[%clk
0:00:40.5]} 20. Qd1 {[%clk 0:00:46.1]} 20... Kg7 {[%clk 0:00:26.5]} 21. Bxf7
{[%clk 0:00:31.1]} 21... Kxf7 {[%clk 0:00:22.1]} 22. Rxh6 {[%clk 0:00:30.8]}
22... Kg7 {[%clk 0:00:15.5]} 23. Rh1 {[%clk 0:00:26.2]} 23... Bb7 {[%clk
0:00:10.7]} 24. Kf1 {[%clk 0:00:17.5]} 24... Nxf3 {[%clk 0:00:09.6]} 25. Nf5+
{[%clk 0:00:16.6]} 25... Kf6 {[%clk 0:00:09.4]} 26. Qc2 {[%clk 0:00:15.8]} 26...
e4 {[%clk 0:00:08.4]} 27. gxf3 {[%clk 0:00:11.6]} 1-0